bitfinex-derivatives/quotes_ETHF0:USTF0_20240831
["timestamp","ask_amount","ask_price","bid_price","bid_amount"]
[1725127467574,0.00103887,2506.3,2506.2,14.26391171]
[1725127469775,0.00103887,2506.3,2506.2,20.26391171]
[1725127470179,0.00023887,2506.3,2506.2,22.88029275]
[1725127471072,0.00023887,2506.3,2506.2,16.28181275]
[1725127471268,0.00023887,2506.3,2506.2,13.66543171]
[1725127471470,0.00023887,2506.3,2506.2,11.52304672]
[1725127471471,0.23961887,2506.3,2506.2,11.52304672]
[1725127471672,0.23961887,2506.3,2506.2,4.49403939]
[1725127471673,0.00023887,2506.3,2506.2,4.49403939]
[1725127471869,0.50953887,2506.3,2506.2,1.04403939]
[1725127472178,0.50953887,2506.3,2506.2,1.28342939]
[1725127472378,0.50953887,2506.3,2506.2,0.23939]
[1725127472874,0.50953887,2506.3,2506.1,1.24789014]
[1725127472875,0.50953887,2506.3,2506.1,1.48728014]
[1725127473070,0.50953887,2506.3,2506.2,1.04403939]
[1725127473377,0.50953887,2506.3,2506.1,1.28342939]
[1725127474363,0.50953887,2506.3,2506.2,1.04403939]
[1725127474569,0.74891887,2506.3,2506.2,1.04403939]
[1725127474770,0.74891887,2506.3,2506.1,1.04403939]
[1725127474771,0.23939,2506.2,2506.1,1.04403939]
[1725127474967,0.2394,2506.1,2506.0,1.04403939]
[1725127475573,0.23942,2505.9,2505.8,1.04403939]
[1725127475765,1.27131,2506.0,2505.6,6.96236137]
[1725127475972,0.4694,2505.8,2505.7,1.04403939]
[1725127476169,0.4694,2505.8,2505.6,5.39647939]
[1725127476371,4.4606,2505.8,2505.6,5.39647939]
[1725127476782,3.9912,2505.7,2505.6,1.04403939]
[1725127476971,4.23064,2505.7,2505.5,1.04403939]
[1725127477172,0.5169,2505.6,2505.5,1.04403939]
[1725127477776,4.5081,2505.6,2505.5,1.04403939]
[1725127477979,4.5081,2505.6,2505.3,4.91613381]
[1725127477980,4.5081,2505.6,2505.3,1.04753662]
[1725127478186,4.5081,2505.6,2505.3,0.00349723]
[1725127478187,0.23947,2505.4,2505.3,0.00349723]
[1725127478588,4.23067,2505.4,2505.3,0.00349723]
[1725127479083,14.7892922,2505.4,2505.3,0.00349723]
[1725127479980,0.23948,2505.3,2505.0,0.20211331]
[1725127480180,0.72138,2505.3,2505.0,0.20211331]
[1725127480380,0.5065,2505.2,2505.0,0.20211331]
[1725127480577,0.5065,2505.2,2505.0,0.44161331]
[1725127480777,0.5065,2505.2,2505.0,0.2395]
[1725127481186,0.5065,2505.2,2505.1,0.23949]
[1725127481488,0.5065,2505.2,2505.1,3.68949]
[1725127481876,0.5065,2505.2,2505.1,3.88651752]
[1725127482072,0.5065,2505.2,2505.1,0.43651752]
[1725127482473,0.5065,2505.2,2505.0,3.6895]
[1725127482680,0.5065,2505.2,2505.1,0.23949]
[1725127483079,0.5065,2505.2,2505.0,3.89163734]
[1725127483285,0.5065,2505.2,2505.1,0.23949]
[1725127486691,0.4815,2505.5,2505.4,0.23947]
[1725127489394,1.005,2505.7,2505.5,0.23946]
[1725127489786,1.005,2505.7,2505.6,0.23945]
[1725127490185,1.005,2505.7,2505.5,0.23945]
[1725127491187,5.23564,2505.7,2505.3,0.23948]
[1725127491402,1.24444,2505.7,2505.3,0.23947]
[1725127491690,1.24444,2505.7,2505.0,10.97293734]
[1725127491691,1.005,2505.7,2505.4,0.23946]
[1725127492590,0.59869887,2506.3,2505.6,0.23944]
[1725127492884,0.59869887,2506.3,2505.4,3.45]
[1725127492885,4.84135562,2506.0,2505.4,3.45]
[1725127493091,4.84135562,2506.0,2505.8,0.23942]
[1725127493284,0.4884,2506.0,2505.7,0.23943]
[1725127493489,0.23942,2505.9,2505.2,4.4399]
[1725127493687,0.23942,2505.9,2505.6,0.23945]
[1725127493890,0.5181,2505.8,2505.6,0.23945]
[1725127494087,0.5052,2505.7,2505.6,0.23945]
[1725127494392,0.5181,2505.8,2505.7,0.23944]
[1725127495692,0.5181,2505.8,2505.2,4.4399]
[1725127495990,3.44725,2505.6,2505.3,0.23947]
[1725127496292,0.4713,2505.5,2505.4,0.23947]
[1725127496797,0.4713,2505.5,2505.3,0.23947]
[1725127497094,1.0035,2505.4,2505.3,0.23947]
[1725127497791,1.0035,2505.4,2505.2,0.23948]
[1725127497996,1.24297,2505.4,2505.2,0.23948]
[1725127498389,1.24297,2505.4,2505.1,0.23949]
[1725127498695,1.24297,2505.4,2505.0,4.79983734]
[1725127498883,1.24297,2505.4,2505.0,0.68683734]
[1725127499484,1.0035,2505.4,2505.0,0.68683734]
[1725127499998,1.0035,2505.4,2505.3,0.23948]
[1725127500193,1.24297,2505.4,2505.2,0.23948]
[1725127500705,1.0035,2505.4,2505.3,0.23948]
[1725127502004,3.2078,2505.9,2505.1,0.59874]
[1725127502207,1.21592,2505.9,2505.6,0.23944]
[1725127502600,1.21592,2505.9,2505.7,0.23944]
[1725127502794,0.9765,2505.9,2505.7,0.23944]
[1725127503109,1.21592,2505.9,2505.7,0.23944]
[1725127503401,0.9765,2505.9,2505.8,0.23943]
[1725127503711,1.21592,2505.9,2505.7,0.23943]
[1725127504094,0.9765,2505.9,2505.8,0.23943]
[1725127505895,3.2078,2506.2,2506.0,0.23941]
[1725127506104,0.479,2506.1,2506.0,0.23941]
[1725127507507,0.00023887,2506.3,2505.7,5.09261939]
[1725127507703,0.00023887,2506.3,2506.2,0.23939]
[1725127509408,0.00023887,2506.3,2506.2,4.22979]
[1725127512810,0.00023887,2506.3,2506.2,4.70499]
[1725127513512,0.00023887,2506.3,2506.2,0.23939]
[1725127520012,1.26954,2506.7,2506.5,0.23935]
[1725127520607,1.26954,2506.7,2506.6,0.23935]
[1725127520608,1.0302,2506.7,2506.6,0.23935]
[1725127521504,1.26955,2506.7,2506.5,0.23936]
[1725127521912,0.23936,2506.5,2506.4,0.00599185]
[1725127523005,4.22896,2506.5,2506.4,0.00599185]
[1725127523305,4.22896,2506.5,2505.8,5.15703939]
[1725127523306,0.23939,2506.2,2505.8,5.15703939]
[1725127523505,1.4644,2506.1,2506.0,0.23941]
[1725127524405,3.2078,2506.2,2506.1,0.2394]
[1725127524606,3.2078,2506.2,2506.1,4.7061]
[1725127525213,1.70255,2506.7,2506.4,0.23937]
[1725127525419,1.4632,2506.7,2506.4,0.23937]
[1725127525604,1.4632,2506.7,2506.3,0.20179407]
[1725127525909,1.4632,2506.7,2506.4,0.23936]
[1725127526110,1.70254,2506.7,2506.4,0.23936]
[1725127527702,1.4632,2506.7,2506.5,0.23936]
[1725127528202,0.95,2506.7,2506.6,0.23935]
[1725127530616,0.95,2506.7,2506.4,0.20390856]
[1725127530919,9.49640311,2506.7,2506.4,0.23937]
[1725127532121,0.95,2506.7,2506.5,0.23936]
[1725127532316,0.95,2506.7,2506.4,0.44304907]
[1725127532517,1.18935,2506.7,2506.4,0.23936]
[1725127533113,1.18935,2506.7,2506.5,0.23936]
[1725127534725,0.95,2506.7,2506.6,0.23935]
[1725127538027,3.6853,2506.8,2506.7,0.23934]
[1725127538523,3.2078,2506.8,2506.7,0.23934]
[1725127540522,3.2078,2506.8,2506.7,4.22894]
[1725127542616,0.48059185,2506.9,2506.8,0.23933]
[1725127542823,3.68839185,2506.9,2506.8,0.23933]
[1725127543025,3.21379185,2506.9,2506.8,0.23933]
[1725127543335,0.4904,2507.1,2506.8,0.23933]
[1725127543336,0.4904,2507.1,2507.0,0.23931]
[1725127546923,0.00599185,2507.3,2507.2,0.23929]
[1725127547131,0.00599185,2507.3,2507.2,4.73332939]
[1725127547336,0.00599185,2507.3,2507.2,8.72212939]
[1725127547524,0.00599185,2507.3,2507.2,11.23837709]
[1725127548335,0.00166424,2507.3,2507.2,11.23837709]
[1725127549546,0.00166424,2507.3,2507.2,17.23837709]
[1725127549735,3.2078,2507.9,2507.8,0.23924]
[1725127549927,3.2078,2507.9,2507.6,4.49059052]
[1725127550124,3.2078,2507.9,2507.8,0.23924]
[1725127550524,3.2078,2507.9,2507.5,2.04028579]
[1725127550525,3.2078,2507.9,2507.7,0.23924]
[1725127550832,1.0088,2507.8,2507.7,0.23924]
[1725127551031,1.0088,2507.8,2507.7,0.43438734]
[1725127551239,1.0088,2507.8,2507.7,4.42238734]
[1725127551937,1.0088,2507.8,2507.7,0.19514734]
[1725127551938,1.4949,2507.8,2507.7,0.19514734]
[1725127552140,1.4949,2507.8,2507.5,0.24525185]
[1725127552429,5.4829,2507.8,2507.5,0.00599185]
[1725127552641,1.4949,2507.8,2507.7,0.23925]
[1725127552829,1.4949,2507.8,2507.7,0.20216746]
[1725127553224,1.4949,2507.8,2507.7,0.44141746]
[1725127553429,1.4949,2507.8,2507.7,0.23925]
[1725127553633,1.0088,2507.8,2507.7,0.23925]
[1725127553833,3.2078,2507.9,2507.8,0.23924]
[1725127554027,4.2108,2507.9,2507.8,0.23924]
[1725127554434,4.2108,2507.9,2507.7,0.23924]
[1725127554837,4.2108,2507.9,2507.8,0.23924]
[1725127558231,1.003,2507.9,2507.8,0.23924]
[1725127558929,4.9902,2507.9,2507.7,0.23924]
[1725127559230,1.003,2507.9,2507.7,0.23924]
[1725127559434,3.9872,2507.8,2507.5,0.00599185]
[1725127559633,3.2078,2507.6,2507.5,0.00599185]
[1725127559831,3.44706,2507.6,2507.5,0.00599185]
[1725127560032,7.43506,2507.6,2507.5,0.00599185]
[1725127560234,7.1958,2507.6,2507.5,0.00599185]
[1725127560428,7.43506,2507.6,2507.5,0.00599185]
[1725127560931,7.1958,2507.6,2507.5,0.00599185]
[1725127562239,3.988,2507.6,2507.5,0.00599185]
[1725127562441,0.23924,2507.8,2507.5,0.24526185]
[1725127562942,0.23924,2507.8,2507.5,0.00599185]
[1725127563149,0.23924,2507.8,2507.5,0.24525185]
[1725127563333,0.23924,2507.8,2507.5,0.00599185]
[1725127563535,0.23924,2507.8,2507.5,0.24525185]
[1725127564345,0.23925,2507.7,2507.5,0.24525185]
[1725127564737,0.23924,2507.8,2507.5,0.24525185]
[1725127565042,0.5175,2507.6,2507.5,0.24525185]
[1725127565545,0.5175,2507.6,2507.5,0.24526185]
[1725127566546,4.74476,2507.6,2507.5,0.00599185]
[1725127568149,4.74476,2507.6,2507.5,0.24526185]
[1725127568150,0.5175,2507.6,2507.5,0.24526185]
[1725127568835,1.003,2507.9,2507.5,0.00599185]
[1725127569043,1.4871,2507.9,2507.5,0.00599185]
[1725127569340,0.23924,2507.8,2507.5,0.24525185]
[1725127569538,0.23925,2507.7,2507.5,0.00599185]
[1725127569744,4.40764707,2507.8,2507.5,0.00599185]
[1725127570135,4.40764707,2507.8,2507.5,0.24525185]
[1725127570337,0.23926,2507.6,2507.5,0.00599185]
[1725127570749,4.22726,2507.6,2507.5,0.00599185]
[1725127572143,0.23926,2507.6,2507.5,0.00599185]
[1725127572345,4.22726,2507.6,2507.5,0.00599185]
[1725127576155,3.988,2507.6,2507.5,0.00599185]
[1725127576451,3.2078,2507.7,2507.5,0.24525185]
[1725127577452,0.23924,2507.8,2507.5,0.24525185]
[1725127578250,1.72634,2507.9,2507.6,0.23925]
[1725127578452,0.23924,2507.8,2507.5,0.24525185]
[1725127578655,1.72633,2507.9,2507.6,0.23925]
[1725127578854,0.23924,2507.8,2507.5,0.24525185]
[1725127579357,1.72633,2507.9,2507.6,0.23925]
[1725127579649,1.4871,2507.9,2507.7,0.44129546]
[1725127579861,1.4871,2507.9,2507.7,0.23924]
[1725127580052,0.23922,2508.0,2507.7,0.23924]
[1725127580356,0.23922,2508.0,2507.7,0.43514146]
[1725127580556,0.00599185,2508.1,2507.7,0.19589146]
[1725127580757,0.00599185,2508.1,2507.9,0.23922]
[1725127582053,0.00599185,2508.1,2508.0,0.23922]
[1725127584451,0.00599185,2508.1,2508.0,4.22642]
[1725127584652,0.00249685,2508.1,2508.0,7.26082255]
[1725127584856,0.00249685,2508.1,2508.0,7.76723993]
[1725127585250,0.00249685,2508.1,2508.0,1.78621052]
[1725127586853,3.98969685,2508.1,2507.9,1.27981052]
[1725127587058,0.00249685,2508.1,2507.9,1.27981052]
[1725127587259,0.4877,2508.0,2507.9,1.27981052]
[1725127587448,0.4877,2508.0,2507.9,0.23922]
[1725127588356,0.4877,2508.0,2507.9,1.27981052]
[1725127588556,0.4877,2508.0,2507.9,0.23922]
[1725127588957,0.00249685,2508.1,2508.0,0.23922]
[1725127589157,0.49019685,2508.1,2507.9,0.23922]
[1725127589364,0.49019685,2508.1,2507.9,1.27981052]
[1725127589753,0.72940685,2508.1,2507.9,1.04059052]
[1725127589956,0.72940685,2508.1,2507.8,1.47538511]
[1725127590159,0.72940685,2508.1,2507.8,0.43479459]
[1725127590355,0.00249685,2508.1,2508.0,0.23922]
[1725127590558,0.59782,2509.0,2508.0,0.23922]
[1725127590559,3.44694,2508.8,2508.0,10.55923825]
[1725127590781,0.4763,2509.2,2508.3,1.04090169]
[1725127590782,0.9809,2508.4,2508.3,1.04090169]
[1725127591064,0.9809,2508.4,2508.2,0.2392]
[1725127591065,4.9673,2508.4,2508.2,1.04090169]
[1725127591264,4.9673,2508.4,2508.1,1.04090169]
[1725127591265,1.22008,2508.4,2508.1,1.04090169]
[1725127591465,3.2078,2508.2,2508.0,1.04090169]
[1725127591668,0.4796,2508.1,2507.9,1.04090169]
[1725127591863,0.4796,2508.1,2508.0,1.24037767]
[1725127592170,0.4796,2508.1,2508.0,0.19947598]
[1725127592677,0.4796,2508.1,2508.0,1.24037767]
[1725127593463,0.4796,2508.1,2508.0,0.19947598]
[1725127593966,0.4796,2508.1,2508.0,1.24037767]
[1725127594359,0.71881,2508.1,2507.8,1.04090169]
[1725127594666,0.4796,2508.1,2507.8,1.04090169]
[1725127595371,0.4796,2508.1,2508.0,0.23922]
[1725127595571,0.4796,2508.1,2507.8,1.04090169]
[1725127595963,0.71881,2508.1,2507.8,1.04090169]
[1725127596168,0.23922,2508.0,2507.8,1.04090169]
[1725127596366,0.4694,2507.9,2507.8,1.04090169]
[1725127596565,15.32627275,2507.9,2507.6,1.56179982]
[1725127596768,15.32627275,2507.9,2507.5,2.08839161]
[1725127596769,0.23926,2507.6,2507.5,0.00599185]
[1725127596977,7.53479108,2507.6,2507.5,0.00599185]
[1725127597267,18.23660362,2507.6,2507.5,0.00599185]
[1725127597468,18.13687254,2507.6,2507.5,0.00599185]
[1725127597661,18.23660657,2507.6,2507.5,0.00599185]
[1725127598282,18.83475657,2507.6,2507.5,0.00599185]
[1725127600276,12.23660657,2507.6,2507.5,0.00599185]
[1725127600776,18.13687254,2507.6,2507.5,0.00599185]
[1725127601168,18.23660523,2507.6,2507.5,0.00599185]
[1725127602177,12.72650523,2507.6,2507.5,0.00599185]
[1725127603178,11.87131254,2507.6,2507.5,0.00599185]
[1725127603776,12.11057254,2507.6,2507.5,0.00599185]
[1725127605374,8.12257254,2507.6,2507.5,0.00599185]
[1725127605581,12.11057254,2507.6,2507.5,0.00599185]
[1725127607470,0.2393,2507.2,2506.9,1.52791927]
[1725127607675,1.2113,2507.1,2506.9,1.52791927]
[1725127607875,1.2113,2507.1,2506.9,0.4854]
[1725127608274,0.972,2507.1,2506.8,1.04251927]
[1725127608487,0.23932,2506.9,2506.7,0.00597967]
[1725127608678,0.23933,2506.8,2506.7,0.00597967]
[1725127608878,4.52310894,2506.8,2506.7,0.00597967]
[1725127609081,8.51270894,2506.8,2506.7,0.00597967]
[1725127612185,8.27337894,2506.8,2506.7,0.00597967]
[1725127612682,8.51270894,2506.8,2506.7,0.00597967]
[1725127614890,11.96270894,2506.8,2506.7,0.00597967]
[1725127615688,15.17050894,2506.8,2506.7,0.00597967]
[1725127617196,15.76884894,2506.8,2506.7,0.00597967]
[1725127619587,12.56104894,2506.8,2506.7,0.00597967]
[1725127619998,15.76884894,2506.8,2506.7,0.00597967]
[1725127620889,15.17050894,2506.8,2506.7,0.00597967]
[1725127621393,8.27337894,2506.8,2506.7,0.24531967]
[1725127621692,0.23931,2507.0,2506.8,0.23933]
[1725127621898,4.42508967,2507.1,2506.9,0.4685]
[1725127622290,4.32548174,2507.0,2506.9,0.70782]
[1725127622498,0.00597967,2507.1,2507.0,0.23931]
[1725127622703,0.00597967,2507.1,2506.9,0.70782]
[1725127625199,0.00597967,2507.1,2507.0,0.23931]
[1725127625787,0.00597967,2507.1,2506.9,0.70782]
[1725127626184,0.00597967,2507.1,2507.0,0.23931]
[1725127629593,0.00597967,2507.1,2506.9,0.70782]
[1725127629989,0.00597967,2507.1,2507.0,0.23931]
[1725127635199,0.00597967,2507.1,2507.0,4.22811]
[1725127635997,0.00597967,2507.1,2507.0,0.23931]
[1725127636800,0.00597967,2507.1,2506.9,0.4685]
[1725127636801,0.24527967,2507.1,2506.9,0.4685]
[1725127637010,3.44712,2507.0,2506.7,0.00597967]
[1725127637207,4.43122,2507.0,2506.7,0.24531967]
[1725127637789,0.23932,2506.9,2506.7,0.00597967]
[1725127637993,4.76794794,2506.9,2506.7,0.00597967]
[1725127638501,0.23933,2506.8,2506.7,0.00597967]
[1725127638698,0.71963,2506.8,2506.7,0.00597967]
[1725127639990,0.4803,2506.8,2506.7,0.00597967]
[1725127640198,0.00597967,2507.1,2506.7,3.99557967]
[1725127640401,0.00597967,2507.1,2506.8,0.5099]
[1725127640700,0.00597967,2507.1,2507.0,0.23931]
[1725127642624,0.00597967,2507.1,2507.0,4.22811]
[1725127642996,0.00597967,2507.1,2507.0,4.70741]
[1725127643203,0.00597967,2507.1,2507.0,0.71861]
[1725127644308,0.00597967,2507.1,2507.0,4.70741]
[1725127644996,0.00249249,2507.1,2507.0,8.26402293]
[1725127646504,0.997,2507.6,2507.4,0.23927]
[1725127646699,0.997,2507.6,2507.3,1.2821973]
[1725127646900,1.23626,2507.6,2507.2,1.2822073]
[1725127647498,0.997,2507.6,2507.2,1.0429173]
[1725127647710,1.23626,2507.6,2507.2,1.2822073]
[1725127648307,0.997,2507.6,2507.2,1.2822073]
[1725127648501,0.997,2507.6,2507.3,0.23928]
[1725127648705,0.997,2507.6,2507.2,1.2822073]
[1725127648908,1.23626,2507.6,2507.2,1.2822073]
[1725127649802,4.2048,2507.6,2507.2,1.2822073]
[1725127650009,4.2048,2507.6,2507.3,0.23928]
[1725127650906,4.2048,2507.6,2507.4,0.23927]
[1725127651108,4.2048,2507.6,2507.3,0.23928]
[1725127652103,4.2048,2507.6,2507.4,0.23927]
[1725127652294,4.2048,2507.6,2507.2,1.0429173]
[1725127652498,4.2048,2507.6,2507.3,0.23928]
[1725127654702,4.44406,2507.6,2507.2,1.2822073]
[1725127654908,0.23928,2507.4,2507.2,1.0429173]
[1725127655213,4.2048,2507.6,2507.1,1.2822173]
[1725127655214,0.4812,2507.3,2507.1,1.2822173]
[1725127655399,0.4812,2507.3,2507.2,0.23929]
[1725127655596,4.2048,2507.6,2507.4,0.23927]
[1725127656209,4.2048,2507.6,2507.5,0.23927]
[1725127656413,3.2078,2507.6,2507.5,0.23927]
[1725127657408,0.00597967,2507.7,2507.6,0.23926]
[1725127657905,0.00597967,2507.7,2507.6,4.22726]
[1725127658301,0.00597967,2507.7,2507.6,4.42941235]
[1725127658503,0.00597967,2507.7,2507.6,5.47232965]
[1725127659415,0.00597967,2507.7,2507.6,7.46650031]
[1725127659811,0.00597967,2507.7,2507.6,7.26434796]
[1725127660116,0.00597967,2507.7,2507.6,5.2701773]
[1725127661009,0.00597967,2507.7,2507.6,5.46959653]
[1725127661209,0.00597967,2507.7,2507.6,4.42667923]
[1725127661506,0.00597967,2507.7,2507.6,4.22726]
[1725127663010,0.23926,2507.6,2507.3,1.2821973]
[1725127663214,0.4994,2507.5,2507.4,0.23927]
[1725127664315,0.4994,2507.5,2507.3,0.23928]
[1725127664509,0.5162,2507.4,2507.3,0.23928]
[1725127666623,0.5162,2507.4,2507.2,1.2822073]
[1725127667420,0.5162,2507.4,2507.3,0.23928]
[1725127667920,0.5162,2507.4,2507.2,1.2822073]
[1725127668120,1.0123,2507.4,2507.2,1.2822073]
[1725127668821,1.0123,2507.4,2507.3,0.23928]
[1725127669916,1.0123,2507.4,2507.2,1.2822073]
[1725127670916,1.0123,2507.4,2507.2,1.0429173]
[1725127671117,3.2078,2507.3,2507.1,1.0429173]
[1725127671318,3.44709,2507.3,2507.1,0.2393]
[1725127671514,1.25158,2507.4,2507.2,0.23929]
[1725127671710,1.25158,2507.4,2507.0,1.0429173]
[1725127671922,1.25158,2507.4,2507.1,0.2393]
[1725127672224,4.05411967,2507.7,2507.0,2.4829173]
[1725127672225,1.44597967,2507.7,2507.0,2.4829173]
[1725127672425,0.5134,2507.4,2507.2,0.23929]
[1725127672723,0.75268,2507.4,2507.1,1.2822173]
[1725127673415,0.23928,2507.3,2507.1,1.2822173]
[1725127673812,0.498,2507.2,2507.1,0.2393]
[1725127674619,0.498,2507.2,2507.1,1.2822173]
[1725127675120,0.5134,2507.4,2507.3,0.23928]
[1725127675822,0.498,2507.5,2507.3,1.2817708]
[1725127676021,0.498,2507.5,2507.3,0.75318]
[1725127676223,0.498,2507.5,2507.4,0.23927]
[1725127676424,0.50177967,2507.7,2507.5,0.23926]
[1725127676730,0.74102967,2507.7,2507.5,0.23926]
[1725127677524,0.50177967,2507.7,2507.5,0.23926]
[1725127679124,0.74102967,2507.7,2507.5,0.23926]
[1725127679426,0.74102967,2507.7,2507.4,0.23927]
[1725127680014,1.44,2507.6,2507.3,1.2817708]
[1725127680221,3.96697,2507.5,2507.3,1.2817708]
[1725127680422,0.4964,2507.4,2507.3,1.0424908]
[1725127680723,0.23928,2507.3,2507.2,1.0424908]
[1725127680930,0.5103,2507.3,2507.1,1.2817908]
[1725127681114,0.5103,2507.3,2507.2,0.23929]
[1725127681321,0.5103,2507.3,2507.2,1.2817808]
[1725127681532,1.9364,2507.4,2507.2,3.27644216]
[1725127681717,0.9654,2507.4,2507.3,0.23928]
[1725127682428,0.469,2507.4,2507.3,1.2817708]
[1725127682622,0.469,2507.4,2507.3,1.7866708]
[1725127683221,0.00597967,2507.7,2507.6,0.23926]
[1725127686324,0.10569891,2507.7,2507.6,0.23926]
[1725127686520,0.00597967,2507.7,2507.6,1.28176698]
[1725127686721,0.00597967,2507.7,2507.6,3.99307838]
[1725127686921,0.00597967,2507.7,2507.6,7.98107838]
[1725127687326,0.00597967,2507.7,2507.6,7.78588822]
[1725127687826,0.00597967,2507.7,2507.6,7.9870428]
[1725127688221,0.00597967,2507.7,2507.6,6.42266684]
[1725127688629,0.00597967,2507.7,2507.6,6.81353532]
[1725127688930,3.2078,2508.1,2508.0,0.23922]
[1725127689126,3.2078,2508.1,2508.0,3.27563799]
[1725127689332,3.2078,2508.1,2508.0,3.27543316]
[1725127690328,3.2078,2508.1,2508.0,3.27511674]
[1725127690521,3.2078,2508.1,2508.0,7.26231674]
[1725127690729,3.2078,2508.1,2508.0,7.76861674]
[1725127691122,3.2078,2508.1,2508.0,6.72675478]
[1725127691323,3.2078,2508.1,2508.0,7.78402959]
[1725127691519,3.2078,2508.1,2508.0,6.73895478]
[1725127691925,3.2078,2508.1,2508.0,7.78242283]
[1725127692127,0.99257967,2508.3,2508.2,0.2392]
[1725127695030,0.99257967,2508.3,2508.1,0.2392]
[1725127695240,0.2392,2508.2,2508.0,1.04704997]
[1725127695534,7.93857456,2508.1,2508.0,0.00597967]
[1725127695934,11.92577456,2508.1,2508.0,0.00597967]
[1725127696636,11.68656456,2508.1,2508.0,0.00597967]
[1725127696832,7.69936456,2508.1,2508.0,0.00597967]
[1725127697529,0.2392,2508.2,2508.0,0.00597967]
[1725127697730,4.20037967,2508.3,2508.1,0.2392]
[1725127697932,0.99257967,2508.3,2508.1,0.2392]
[1725127698441,0.00597967,2508.3,2508.2,0.2392]
[1725127698636,0.49487967,2508.3,2508.2,0.2392]
[1725127699637,0.49487967,2508.3,2508.1,0.2392]
[1725127699841,0.49487967,2508.3,2508.2,0.2392]
[1725127701239,0.49487967,2508.3,2508.2,4.2264]
[1725127701240,0.00597967,2508.3,2508.2,4.2264]
[1725127701444,0.00597967,2508.3,2508.2,0.2392]
[1725127702232,0.00597967,2508.3,2508.1,0.2392]
[1725127702545,0.00597967,2508.3,2508.2,0.2392]
[1725127702836,0.00597967,2508.3,2508.1,0.2392]
[1725127703041,3.21377967,2508.3,2508.0,1.04704997]
[1725127703246,3.21377967,2508.3,2508.1,0.23921]
[1725127704134,0.2392,2508.2,2508.0,0.00597967]
[1725127704341,0.4845,2508.1,2508.0,0.24519967]
[1725127705033,0.4845,2508.1,2508.0,0.00597967]
[1725127705233,8.16091,2508.1,2508.0,0.00597967]
[1725127707644,4.4717,2508.1,2508.0,0.00597967]
[1725127707836,0.00597967,2508.3,2508.0,0.00597967]
[1725127708040,0.48737967,2508.3,2508.1,0.2392]
[1725127708235,0.48737967,2508.3,2508.2,0.2392]
[1725127708743,0.00597967,2508.3,2508.2,0.2392]
[1725127709446,0.00597967,2508.3,2508.2,0.7431]
[1725127711451,7.44016967,2508.3,2508.0,0.24518967]
[1725127711749,3.68921,2508.1,2508.0,0.00597967]
[1725127711944,3.45,2508.1,2508.0,0.00597967]
[1725127712249,0.23921,2508.2,2508.0,0.00597967]
[1725127712447,3.21377967,2508.3,2508.1,0.2392]
[1725127712648,3.21377967,2508.3,2508.2,0.2392]
[1725127713853,0.00597967,2508.3,2508.2,0.2392]
[1725127715244,0.00597967,2508.3,2508.2,4.2264]
[1725127715445,0.00249362,2508.3,2508.2,4.2264]
[1725127715644,0.4949,2508.6,2508.5,0.23917]
[1725127716853,0.4949,2508.6,2508.4,0.23917]
[1725127717053,2.4553,2508.5,2508.4,0.23917]
[1725127717756,1.44,2508.5,2508.4,0.23917]
[1725127717953,0.4949,2508.6,2508.5,0.23917]
[1725127722953,4.4075,2508.6,2508.4,0.23917]
[1725127723161,4.4075,2508.6,2508.5,0.23917]
[1725127723655,0.9675,2508.6,2508.5,0.23917]
[1725127724553,0.4949,2508.6,2508.5,0.23917]
[1725127730148,0.23917,2508.5,2508.3,0.23919]
[1725127730356,0.23917,2508.5,2508.2,1.0410703]
[1725127730357,0.23918,2508.4,2508.2,1.2802703]
[1725127730550,0.23918,2508.4,2508.2,1.0410703]
[1725127730751,0.23918,2508.4,2508.1,1.2802803]
[1725127730951,0.75758,2508.5,2508.3,0.23918]
[1725127731256,4.6171394,2508.4,2508.3,0.23918]
[1725127731661,0.5184,2508.5,2508.3,0.23918]
[1725127731860,0.75757,2508.5,2508.3,0.23918]
[1725127732961,0.5184,2508.5,2508.4,0.23918]
[1725127733564,0.5184,2508.5,2508.2,1.0410703]
[1725127733565,0.23919,2508.3,2508.2,1.0410703]
[1725127734458,0.23919,2508.3,2508.2,3.03496015]
[1725127734661,0.23919,2508.3,2508.2,1.0410703]
[1725127734859,0.23918,2508.4,2508.2,3.27415172]
[1725127735054,0.23918,2508.4,2508.2,1.0410703]
[1725127735256,4.67475355,2508.5,2508.2,1.0410703]
[1725127735460,4.91392355,2508.5,2508.3,1.2802603]
[1725127735853,4.91392355,2508.5,2508.3,0.23919]
[1725127736165,0.4949,2508.6,2508.5,0.23917]
[1725127736664,0.4949,2508.6,2508.4,1.2802403]
[1725127736965,0.73406,2508.6,2508.4,1.2802503]
[1725127737358,0.4949,2508.6,2508.4,1.2802503]
[1725127737684,0.23917,2508.5,2508.4,1.0410703]
[1725127737859,0.23917,2508.5,2508.3,1.0410703]
[1725127737860,0.23918,2508.4,2508.3,1.0410703]
[1725127738062,0.74158,2508.4,2508.3,1.0410703]
[1725127738363,0.23919,2508.3,2508.2,1.0410703]
[1725127740459,0.4949,2508.6,2508.3,0.23918]
[1725127740655,0.23918,2508.4,2508.3,1.0410703]
[1725127740872,4.87921384,2508.5,2508.3,1.0410703]
[1725127741258,4.87921384,2508.5,2508.2,1.2802603]
[1725127741463,0.23918,2508.4,2508.3,1.0410703]
[1725127742363,3.44698,2508.4,2508.3,1.0410703]
[1725127742766,3.2078,2508.4,2508.3,1.0410703]
[1725127743167,3.92857,2508.5,2508.3,1.0410703]
[1725127743463,3.92857,2508.5,2508.3,1.2802603]
[1725127743464,3.6894,2508.5,2508.3,1.2802603]
[1725127743665,3.6894,2508.5,2508.3,1.7893603]
[1725127743869,3.44697,2508.5,2508.3,1.7893603]
[1725127744068,3.2078,2508.5,2508.3,1.5501703]
[1725127744360,3.2078,2508.5,2508.3,1.0410703]
[1725127744767,0.23918,2508.4,2508.3,1.0410703]
[1725127744964,0.23918,2508.4,2508.2,1.0410703]
[1725127745165,0.5109,2508.3,2508.2,1.0410703]
[1725127745467,0.5109,2508.3,2508.2,3.27457221]
[1725127745959,0.75009,2508.3,2508.2,3.03537221]
[1725127746766,0.75009,2508.3,2508.1,1.04161071]
[1725127746767,0.2392,2508.2,2508.1,1.04161071]